Cogmind - Beta 16.1 @@@ ROGUE MODE // 2026.04.20 @ 12:29:23 Player: Maelyn Result: Destroyed by G-47 Trooper with Particle Gun Performance ------------- Evolutions (2) 1000 Regions Visited (7) 1400 Robots Destroyed (79) 395 Value Destroyed (1864) 1864 Prototype IDs (28) 560 Alien Tech Used (0) 0 Bonus (432) 432 TOTAL SCORE: 5651 Bonus ------- High Alert Combat Kills 38 Follower Combat Kills 263 Aligned with FarCom 300 Friendly Fire -169 Cogmind --------- Core Integrity 0/550 Matter 207/300 Energy 300/300 System Corruption 0% Temperature Cool (9) Movement Core (400) Ox7 Location -8/Materials Parts ------- > --- POWER (1) -------- (None) > --- PROPULSION (4) --- (None) > --- UTILITY (4) ------ Large Storage Unit Large Battery Structural Scanner > --- WEAPON (2) ------- (None) > --- INVENTORY (15) --- Improved Ion Engine Cooled Ion Engine Heat Sink Medium Storage Unit Machine Analyzer ECM Suite Hardened Light Armor Plating Hacking Suite Hacking Suite Hacking Suite System Shield System Shield Peak State ------------ > --- POWER ------------ Deuterium Engine > --- PROPULSION ------- Armored Treads > --- UTILITY ---------- Large Storage Unit Large Battery Structural Scanner Improved Utility Shielding > --- WEAPON ----------- Field Lobotomy Kit Axe > --- INVENTORY -------- Improved Ion Engine Cooled Ion Engine Heat Sink Medium Storage Unit Machine Analyzer ECM Suite Hacking Suite Hacking Suite Hacking Suite System Shield System Shield Rocket Launcher [Rating: 27] Favorites ----------- Power Cooled Ion Engine Engine Cooled Ion Engine Propulsion Light Treads Treads Light Treads Leg Aluminum Leg Wheel Armored Wheel Utility Large Storage Unit Device Structural Scanner Storage Large Storage Unit Protection Improved Light Armor Plating Weapon Axe Energy Gun Improved EM Shotgun Ballistic Gun Heavy Assault Rifle Ballistic Cannon Improved Light Cannon Launcher Grenade Launcher Special Weapon Field Lobotomy Kit Slashing Weapon Axe Build | -11 -10 -10 -9 -9 -9 -8 -8 ------- Run | Yrd Mat Min Mat Min Exi Min Mat Slots Evolved 4 | . . . 2 . . . 2 Power . | . . . . . . . . Propulsion 2 | . . . 1 . . . 1 Utility 2 | . . . 1 . . . 1 Weapon . | . . . . . . . . Parts Attached 44 | 4 11 1 14 5 1 . 8 Power 6 | 1 2 . 2 . . . 1 Engine 6 | 1 2 . 2 . . . 1 Core . | . . . . . . . . Reactor . | . . . . . . . . Propulsion 12 | 2 4 . 4 . . . 2 Treads 8 | 2 . . 4 . . . 2 Leg 2 | . 2 . . . . . . Wheel 2 | . 2 . . . . . . Hover . | . . . . . . . . Flight . | . . . . . . . . Utility 11 | 1 1 1 3 3 1 . 1 Device 5 | . . 1 1 3 . . . Storage 4 | 1 1 . 1 . 1 . . Processor . | . . . . . . . . Hackware . | . . . . . . . . Protection 2 | . . . 1 . . . 1 Artifact . | . . . . . . . . Weapon 15 | . 4 . 5 2 . . 4 Energy Gun 8 | . 2 . 5 . . . 1 Energy Cannon . | . . . . . . . . Ballistic Gun 1 | . . . . . . . 1 Ballistic Cannon 2 | . 2 . . . . . . Launcher 2 | . . . . 1 . . 1 Special Weapon 1 | . . . . . . . 1 Impact Weapon . | . . . . . . . . Slashing Weapon 1 | . . . . 1 . . . Piercing Weapon . | . . . . . . . . Special Melee Weapon . | . . . . . . . . Unidentified Prototypes 3 | . . . 2 1 . . . Parts Lost 25 | . 2 . 7 3 . . 13 Power 2 | . . . 1 . . . 1 Propulsion 8 | . 2 . 1 . . . 5 Utility 4 | . . . 1 2 . . 1 Weapon 11 | . . . 4 1 . . 6 Highest Loss Streak 7 | . 2 . 2 1 . . 7 To Critical Strikes . | . . . . . . . . Average Backups 11 | 3 4 9 10 12 12 14 14 Power 2 | . 1 1 2 3 3 3 2 Propulsion 1 | 1 1 2 2 1 1 1 . Utility 4 | . . . 2 4 4 5 7 Weapon 3 | 2 2 5 3 3 4 3 2 Tool/Special . | . . . . . . . . Unused Backups 16 | . . . 2 . . . 14 Power 3 | . . . . . . . 3 Propulsion 2 | . . . . . . . 2 Utility 8 | . . . . . . . 8 Weapon 3 | . . . 2 . . . 1 Tool/Special . | . . . . . . . . Average Slot Usage (%) 90 | . 82 99 85 94 83 100 88 Engine 10 | . 14 14 10 11 11 11 8 Treads 23 | . 9 . 8 33 33 33 30 Wheel 6 | . 3 28 16 . . . . Device 13 | . . 13 13 19 11 11 9 Storage 13 | . 14 14 11 11 12 22 18 Protection 3 | . . . 6 1 5 . 5 Energy Gun 7 | . 26 . 12 4 . . 6 Ballistic Cannon 3 | . 1 28 5 . . . . Launcher 1 | . . . . 2 . 11 . Slashing Weapon 5 | . . . . 10 11 11 5 Peak Build Rating 27 | 4 12 13 18 23 17 16 27 Average Rating 17 | 3 6 12 15 20 14 15 20 On Entrance 11 | . 4 12 13 16 13 15 16 Avg Prop Armor Cover (%) . | . . . . . . . . Naked Turns . | . . . . . . . . Heaviest Build 46 | 10 25 26 44 43 35 38 46 Greatest Support 80 | 40 40 24 60 60 60 60 80 Greatest Overweight (x) 14 | . 1 1 1 . . . 14 Average Overweight (x) . | . . 1 . . . . . Largest Inventory Capacity 15 | 8 10 10 15 15 15 15 15 Average Capacity 13 | 7 8 10 13 15 15 15 15 Most Carried 15 | 6 9 10 13 13 14 15 15 Average Carried 11 | 3 4 9 10 12 12 14 14 Final Capacity 15 | 8 10 10 15 15 15 15 15 Final Carried 15 | 6 9 9 11 13 14 15 12 Class Distribution -------------------- 85% | Mutant 14% | Scavenger-Mutant Dominant Class ---------------- Mutant | -10/Materials Mutant | -10/Mines Mutant | -9/Materials Mutant | -9/Mines Mutant | -9/Exiles Mutant | -8/Mines Mutant | -8/Materials Resources | -11 -10 -10 -9 -9 -9 -8 -8 ----------- Run | Yrd Mat Min Mat Min Exi Min Mat Matter Collected 1197 | 61 41 68 537 201 . 82 207 Remotely . | . . . . . . . . Salvage Created 2276 | . 81 116 1123 437 . 112 407 Parts 154 | . 3 4 79 29 . 5 34 Haulers Intercepted 3 | . . . 2 . . . 1 Recyclers Shooed 3 | . . 1 2 . . . . Parts Field Recycled . | . . . . . . . . Retrieved Matter . | . . . . . . . . Parts Self-Destructed . | . . . . . . . . Prevented . | . . . . . . . . Parts Restored . | . . . . . . . . Kills | -11 -10 -10 -9 -9 -9 -8 -8 ------- Run | Yrd Mat Min Mat Min Exi Min Mat Combat Hostiles Destroyed 49 | . 2 2 23 7 . 3 12 Melee 2 | . . . . 2 . . . Guns 27 | . 2 . 16 . . . 9 Cannons 7 | . . 2 5 . . . . AOE 11 | . . . 1 4 . 3 3 Classes Destroyed 11 | . 1 1 7 2 . . . Worker 5 | . . . 2 2 . . 1 Builder 6 | . . . 1 4 . . 1 Tunneler 4 | . . . . 3 . . 1 Hauler 3 | . . . 2 . . . 1 Recycler 3 | . . 1 1 1 . . . Operator 5 | . . . 4 . . . 1 Watcher 4 | . . . 4 . . . . Swarmer 16 | . . . 4 5 . . 7 Grunt 25 | . 2 2 13 1 . 3 4 Duelist 1 | . . . . 1 . . . Sentry 7 | . . . 6 . . . 1 Best Kill Streak 9 | . 1 3 9 3 . 3 7 Combat Bots Only 4 | . 1 2 3 3 . 3 4 Max Kills in Single Turn 4 | . 1 1 4 2 . 2 2 Gunslinging 1 | . . . . . . . 1 Exploded 2 | . . . 1 2 . 2 2 Melee 1 | . . . . 1 . . . Uniques/NPCs Destroyed . | . . . . . . . . Combat | -11 -10 -10 -9 -9 -9 -8 -8 -------- Run | Yrd Mat Min Mat Min Exi Min Mat Hostile Shots Fired 375 | . 41 4 134 35 . 4 157 Missed 101 | . 5 2 30 9 . 1 54 Hits 274 | . 36 2 104 26 . 3 103 Melee 5 | . . . . 5 . . . Projectile 269 | . 36 2 104 21 . 3 103 AOE 14 | . . . . . . . 14 Critical Strikes 9 | . . . . 2 . 2 5 Actively Blocked 1 | . . . . . . . 1 Damage Taken 4293 | . 464 26 1414 387 . 68 1934 Core 829 | . 59 . 177 . . 35 558 Absorbed by Shields . | . . . . . . . . Redirected to Shielding 101 | . . . . . . . 101 Core Remaining (%) 74 | 100 . 76 . . . 47 . Volleys Fired 185 | . 18 6 103 9 . 2 47 Largest 2 | . 2 2 2 1 . 1 2 Hottest 121 | . 90 66 121 45 . 30 88 Shots Fired 288 | . 33 12 166 10 . 3 64 Gun 228 | . 33 . 132 8 . . 55 Cannon 46 | . . 12 34 . . . . Launcher 12 | . . . . 2 . 3 7 Special 2 | . . . . . . . 2 Kinetic 77 | . . 12 34 . . . 31 Thermal 177 | . 33 . 120 . . . 24 Explosive 12 | . . . . 2 . 3 7 Electromagnetic 20 | . . . 12 8 . . . Robot Hit Streak 17 | . 4 7 17 4 . 3 6 Robot Miss Streak 6 | . 4 1 5 2 . . 6 Penetration Max . | . . . . . . . . Secondary Targets 3 | . 1 . 1 . . . 1 Max Gunslinging Chain 1 | . 1 . 1 . . . 1 Shots Hit Robots 209 | . 14 8 112 26 . 2 47 Core Hits 116 | . 5 4 52 9 . 6 40 Critical Kills . | . . . . . . . . Critical Parts Destroyed . | . . . . . . . . Critical Strikes 13 | . . 1 11 1 . . . Burn 8 | . . . 8 . . . . Blast 4 | . . 1 3 . . . . Sever 1 | . . . . 1 . . . Melee Attacks 43 | . . . . 25 . . 18 Impact . | . . . . . . . . Slashing 43 | . . . . 25 . . 18 Piercing . | . . . . . . . . Sneak Attacks 18 | . . . . 14 . . 4 Combat Hostiles . | . . . . . . . . Follow-up Attacks . | . . . . . . . . Damage Inflicted 5322 | . 163 166 2126 1379 . 185 1303 Guns 2117 | . 163 . 1396 98 . . 460 Cannons 529 | . . 166 363 . . . . Explosions 1258 | . . . 330 224 . 185 519 Melee 1381 | . . . . 1057 . . 324 Ramming 37 | . . . 37 . . . . Kinetic 815 | . . 166 363 . . . 286 Thermal 1770 | . 163 . 1366 67 . . 174 Explosive 1030 | . . . 169 157 . 185 519 Electromagnetic 289 | . . . 191 98 . . . Impact . | . . . . . . . . Slashing 1381 | . . . . 1057 . . 324 Piercing . | . . . . . . . . Highest Corruption 7 | . . . 7 7 7 7 . Average Corruption 6 | . . . 6 7 7 7 . Corruption Purged . | . . . . . . . . Corruption Blocked . | . . . . . . . . Effects 88 | . . . 24 45 11 8 . Message Errors 22 | . . . 8 10 2 2 . Matter Fused 28 | . . . 8 13 2 5 . Heat Flow Errors 9 | . . . 1 5 3 . . Energy Discharges 5 | . . . 2 2 1 . . Parts Rejected 1 | . . . 1 . . . . Data Loss (minor) 9 | . . . 1 6 2 . . Data Loss (major) 8 | . . . . 7 1 . . Misfires 3 | . . . 1 1 . 1 . Alerts 2 | . . . 1 1 . . . Weapon Failures 1 | . . . 1 . . . . Overload Shots . | . . . . . . . . Overflow Damage 603 | . . . 74 361 . . 168 Projectiles . | . . . . . . . . Explosions 94 | . . . 74 20 . . . Melee 509 | . . . . 341 . . 168 Knockbacks 6 | . . 3 3 . . . . Impact . | . . . . . . . . Kinetic 6 | . . 3 3 . . . . Secondary . | . . . . . . . . Self-Inflicted Damage 266 | . . . 143 39 . 17 67 Shots 9 | . . . 2 1 . 2 4 Rammed 5 | . . . 5 . . . . Targets Rammed 5 | . . . 5 . . . . Kicked . | . . . . . . . . Crushed . | . . . . . . . . Highest Temperature 555 | . 555 45 207 280 279 43 54 Average Temperature 119 | . 314 21 75 139 122 25 12 Received Heat Transfer 1305 | . 255 18 438 45 . 63 486 Effects 10 | . 10 . . . . . . Shutdowns 2 | . 2 . . . . . . Energy Bleed 1 | . 1 . . . . . . Interference 4 | . 4 . . . . . . Short Circuit 1 | . 1 . . . . . . Damage (minor) 2 | . 2 . . . . . . Siege Activations . | . . . . . . . . Martial Activations . | . . . . . . . . Shielding Activations . | . . . . . . . . Robots Disrupted . | . . . . . . . . Combat Hostiles . | . . . . . . . . Robots Corrupted 1 | . . . . 1 . . . Combat Hostiles 1 | . . . . 1 . . . Parts Fried 2 | . . . 1 1 . . . Impact Corruptions . | . . . . . . . . Robots Melted 2 | . . . 2 . . . . Combat Hostiles 1 | . . . 1 . . . . Parts Melted 8 | . 1 . 6 . . . 1 Heat Transferred 4537 | . 434 . 3758 50 . . 295 Parts Sabotaged . | . . . . . . . . Parts Stolen . | . . . . . . . . Parts Stripped . | . . . . . . . . Power Chain Reactions 1 | . . . . 1 . . . Alert | -11 -10 -10 -9 -9 -9 -8 -8 ------- Run | Yrd Mat Min Mat Min Exi Min Mat Maximum Alert Level 2 | . . . 2 1 . . . Low Security (%) 83 | 100 100 100 33 97 . 100 100 Level 1 10 | . . . 41 2 . . . Level 2 5 | . . . 24 . . . . Level 3 . | . . . . . . . . Level 4 . | . . . . . . . . Level 5 . | . . . . . . . . High Security . | . . . . . . . . Max Security . | . . . . . . . . Peak Influence 460 | . 30 50 460 216 . 87 107 Initial 160 | . . . . 160 . . . Average 92 | . 3 6 280 54 . 29 28 Influence Increases 1982 | . 50 56 953 375 . 96 452 Destroy 0b10 Robot/C 1160 | . 40 40 500 240 . 60 280 Destroy 0b10 Robot/NC 150 | . . 5 70 50 . . 25 Destroy Leader 264 | . 10 10 162 30 . 10 42 Allied During Kill 25 | . . . 4 15 . . 6 Successful Hack 42 | . . . 12 . . . 30 Disable Machine 180 | . . . 135 . . . 45 Destroy Structure 116 | . . 1 55 10 . 26 24 Lose Combat Pursuer 45 | . . . 15 30 . . . Influence Decreases 1982 | . 50 56 542 768 18 96 452 Entered New Map 269 | . . . . 251 18 . . Time Decay 1419 | . 30 56 452 487 . 96 298 Lost Part 234 | . 20 . 70 30 . . 114 Lost Ally 60 | . . . 20 . . . 40 Squads Dispatched 15 | . . 1 7 . . . 7 Investigation 4 | . . . 3 . . . 1 Extermination . | . . . . . . . . Reinforcement 8 | . . . 4 . . . 4 Assault 1 | . . 1 . . . . . Garrison 2 | . . . . . . . 2 Intercept . | . . . . . . . . Searches Triggered . | . . . . . . . . Construction Impeded 1 | . . . . . . . 1 Haulers Reinforced . | . . . . . . . . Active Scanning Responses . | . . . . . . . . Cargo Convoy Interrupts . | . . . . . . . . Stealth | -11 -10 -10 -9 -9 -9 -8 -8 --------- Run | Yrd Mat Min Mat Min Exi Min Mat Distress Signals 6 | . . . 3 . . . 3 Communications Jammed . | . . . . . . . . Distress Signals . | . . . . . . . . Times Spotted 91 | . 2 2 36 19 . 3 29 Peak Tracking Total 9 | . 2 1 4 4 . 3 9 Tactical Retreats 2 | . . . 1 1 . . . Traps | -11 -10 -10 -9 -9 -9 -8 -8 ------- Run | Yrd Mat Min Mat Min Exi Min Mat Traps Triggered 6 | . . . 6 . . . . Indirectly . | . . . . . . . . Trap Hack Attempts . | . . . . . . . . Triggered . | . . . . . . . . Disarmed . | . . . . . . . . Reprogrammed . | . . . . . . . . Reused . | . . . . . . . . Traps Extracted . | . . . . . . . . Installed . | . . . . . . . . Triggered . | . . . . . . . . Machines | -11 -10 -10 -9 -9 -9 -8 -8 ---------- Run | Yrd Mat Min Mat Min Exi Min Mat Machines Disabled 12 | . . . 9 . . . 3 Max in Single Turn 4 | . . . 4 . . . 1 Machines Repaired . | . . . . . . . . Machines Dismantled . | . . . . . . . . Machines Sabotaged . | . . . . . . . . Overloaded Fab Kills . | . . . . . . . . Hacking | -11 -10 -10 -9 -9 -9 -8 -8 --------- Run | Yrd Mat Min Mat Min Exi Min Mat Machines Accessed 10 | . 1 . 4 1 1 . 3 Terminals 7 | . . . 4 . . . 3 Fabricators . | . . . . . . . . Repair Stations . | . . . . . . . . Recycling Units 1 | . 1 . . . . . . Scanalyzers . | . . . . . . . . Garrison Access . | . . . . . . . . Total Hacks 24 | . 1 . 15 1 1 . 6 Successful 14 | . 1 . 6 1 1 . 5 Failed 10 | . . . 9 . . . 1 Catastrophic 2 | . . . 1 . . . 1 Database Lockouts . | . . . . . . . . Manual 12 | . . . 6 . 1 . 5 Terminals 21 | . . . 15 . . . 6 Fabricators . | . . . . . . . . Repair Stations . | . . . . . . . . Recycling Units 1 | . 1 . . . . . . Scanalyzers . | . . . . . . . . Garrison Access . | . . . . . . . . Terminal Hacks 9 | . . . 3 1 1 . 4 Prototype ID Bank 1 | . . . 1 . . . . Open Door 1 | . . . . 1 . . . Terminal Index 2 | . . . 1 . . . 1 Investigation Status 1 | . . . . . . . 1 Hauler Manifests 1 | . . . . . . . 1 Registered Components 2 | . . . 1 . . . 1 Proto ID Catalog 1 | . . . . . 1 . . Fabricator Hacks . | . . . . . . . . Repair Station Hacks . | . . . . . . . . Recycling Unit Hacks 1 | . 1 . . . . . . Report Inventory 1 | . 1 . . . . . . Scanalyzer . | . . . . . . . . Garrison Access Hacks . | . . . . . . . . Unauthorized Hacks 4 | . . . 3 . . . 1 Terminals 4 | . . . 3 . . . 1 Botnet 3 | . . . 2 . . . 1 Operators 1 | . . . 1 . . . . Fabricators . | . . . . . . . . Repair Stations . | . . . . . . . . Recycling Units . | . . . . . . . . Scanalyzers . | . . . . . . . . Garrison Access . | . . . . . . . . Data Cores Recovered . | . . . . . . . . Used . | . . . . . . . . Hacking Detections 6 | . . . 3 . . . 3 Full Trace Events 3 | . . . 2 . . . 1 Feedback Events . | . . . . . . . . Feedback Blocked . | . . . . . . . . Robot Schematics Acquired . | . . . . . . . . Robots Built . | . . . . . . . . Authchips . | . . . . . . . . Time . | . . . . . . . . Total Robot Build Rating . | . . . . . . . . Part Schematics Acquired . | . . . . . . . . Parts Built . | . . . . . . . . Authchips . | . . . . . . . . Time . | . . . . . . . . Total Part Build Rating . | . . . . . . . . Part Studies Acquired . | . . . . . . . . Parts Repaired . | . . . . . . . . Time . | . . . . . . . . Parts Recycled . | . . . . . . . . Recycled Matter . | . . . . . . . . Retrieved Matter . | . . . . . . . . Retrieved Components . | . . . . . . . . Parts Scanalyzed . | . . . . . . . . Part Schematics Acquired . | . . . . . . . . Parts Damaged . | . . . . . . . . Bothacking | -11 -10 -10 -9 -9 -9 -8 -8 ------------ Run | Yrd Mat Min Mat Min Exi Min Mat Used RIF Installer . | . . . . . . . . Robots Hacked . | . . . . . . . . Non-combat . | . . . . . . . . Combat . | . . . . . . . . Robot Hacks Applied . | . . . . . . . . Relay Couplers Released . | . . . . . . . . Fabnet Peak Effective % . | . . . . . . . . Robots Rewired . | . . . . . . . . Allies Hacked . | . . . . . . . . Hacks Repelled . | . . . . . . . . Allies | -11 -10 -10 -9 -9 -9 -8 -8 -------- Run | Yrd Mat Min Mat Min Exi Min Mat Total Allies 9 | . . 1 . 6 . . 2 Largest Group 3 | . . 1 1 3 . . 2 Highest-Rated Group 37 | . . 31 31 26 . . 37 Highest-Rated Ally 31 | . . 31 31 10 . . 21 Total Orders . | . . . . . . . . Ally Attacks 51 | . . . 6 30 . . 15 Total Damage 488 | . . . 85 157 . . 246 Kills 11 | . . . 2 7 . . 2 Allies Corrupted . | . . . . . . . . Allies Melted . | . . . . . . . . Field Lobotomies 2 | . . . . . . . 2 Intel | -11 -10 -10 -9 -9 -9 -8 -8 ------- Run | Yrd Mat Min Mat Min Exi Min Mat Active Infowar (turns) 3035 | . . 446 261 560 399 283 1086 Sensors 707 | . . 446 261 . . . . Structural 2328 | . . . . 560 399 283 1086 Robot Analysis Total . | . . . . . . . . Derelict Logs Recovered 3 | . . 1 . 2 . . . Drone Launches 27 | . . . . 27 . . . Drone Recoveries 25 | . . . . 25 . . . Exploration | -11 -10 -10 -9 -9 -9 -8 -8 ------------- Run | Yrd Mat Min Mat Min Exi Min Mat Turns Passed 5283 | 60 253 450 1135 1617 399 283 1086 Spaces Moved 3059 | 32 140 409 711 945 247 172 403 Core 12 | 2 . . . . . . 10 Treads 1965 | 30 26 . 152 945 247 172 393 Legs 95 | . 95 . . . . . . Wheels 987 | . 19 409 559 . . . . Hover . | . . . . . . . . Flight . | . . . . . . . . Fastest Speed 50 | 50 90 105 90 160 160 160 160 Average Speed 143 | 153 124 105 115 160 160 160 179 Slowest Speed 750 | 160 160 105 160 160 160 160 750 Overloaded Moves . | . . . . . . . . Propulsion Burnouts . | . . . . . . . . Robots Hopped . | . . . . . . . . Potential Cave-ins . | . . . . . . . . Cave-ins Triggered . | . . . . . . . . Exploration Rate (%) 50 | 3 24 78 55 99 61 34 49 Regions Visited 7 Branch Regions 4 Pre-discovered Areas 3 | . . . . 3 . . . Known Exits Taken . | . . . . . . . . Unknown Exits Taken 7 | 1 1 1 1 1 1 1 . Scrap Searched 4 | . . 1 . 1 . 2 . Spaces Dug 12 | . . . . . . . 12 Terrain Destroyed 138 | . . 1 62 11 . 39 25 Melee 12 | . . . . . . . 12 Projectile 5 | . . 1 4 . . . . AOE 121 | . . . 58 11 . 39 13 Terrain Rammed . | . . . . . . . . Walls Destroyed . | . . . . . . . . Machines Disabled . | . . . . . . . . Actions | -11 -10 -10 -9 -9 -9 -8 -8 --------- Run | Yrd Mat Min Mat Min Exi Min Mat Total 3590 | 41 184 417 856 993 250 178 671 Wait 175 | . 6 . . 1 . . 168 Move 3052 | 31 139 408 710 944 246 171 403 Hop . | . . . . . . . . Pick Up 40 | 6 5 1 11 3 2 3 9 Fast Attach 18 | 4 3 1 7 1 . . 2 Attach 18 | . 4 . 6 1 1 1 5 Detach 6 | . 3 . 3 . . . . Swap 25 | . 4 . 3 7 1 . 10 Drop 21 | . 2 1 8 . . 1 9 Fire 185 | . 18 6 103 9 . 2 47 Melee 43 | . . . . 25 . . 18 Ram 2 | . . . 2 . . . . Kick . | . . . . . . . . Crush 3 | . . . 3 . . . . Escape Stasis . | . . . . . . . . Rewire 2 | . . . . 2 . . . Trap . | . . . . . . . . Miscellaneous . | . . . . . . . . Route ------- -11/Scrapyard -10/Materials (discovered 2 exits: *Mat / [*Min]) -10/Mines -9/Materials (discovered 3 exits: *Mat / *Min / *Sto) -9/Mines (discovered 4 exits: *Mat x2 / *Exi / [*Zio]) -9/Exiles -8/Mines -8/Materials History --------- Turn | Location | Event 6 | -11/Scrapyard | Discovered new exit (range 15) 61 | -11/Scrapyard | Entered Materials 229 | -10/Materials | Discovered new exit (range 3) 276 | -10/Materials | Discovered new exit (range 15) 314 | -10/Materials | Entered Mines 339 | -10/Mines | Build established: Mutant 377 | -10/Mines | Learned location of 1 exit from Materials 662 | -10/Mines | Met a Derelict testing a Signal Generator 748 | -10/Mines | Discovered new exit (range 12) 764 | -10/Mines | Entered Materials 764 | -9/Materials | Accompanied by 1 ally 764 | -9/Materials | Evolved 2 slots: Propulsion x1, Utility x1 765 | -9/Materials | Identified exit to Storage 1076 | -9/Materials | Discovered new exit (range 16) 1467 | -9/Materials | Discovered new exit (range 7) 1885 | -9/Materials | Build established: Scavenger-Mutant 1899 | -9/Materials | Entered Mines 1937 | -9/Mines | Received a Rocket Launcher from a helpful Derelict 1967 | -9/Mines | Learned location of Zion (-7) 2019 | -9/Mines | Excavation squad dispatched 2019 | -9/Mines | A large section of the Mines collapsed 2119 | -9/Mines | Found the Drone Emporium 2131 | -9/Mines | Found Prototype Device 2134 | -9/Mines | Identified Splice Drone Bay 2149 | -9/Mines | Learned location of Storage (-9) 2225 | -9/Mines | Build established: Mutant 2260 | -9/Mines | Found a hidden stash of uninstalled traps 2396 | -9/Mines | A Derelict revealed a hidden shortcut to a safe place 2521 | -9/Mines | Discovered new exit (range 5) 2766 | -9/Mines | Discovered new exit (range 14) 2775 | -9/Mines | Learned location of Recycling (-9) 3509 | -9/Mines | Deemed a non-threat by the Exiles lab entrance 3509 | -9/Mines | Discovered new exit (range 5) 3516 | -9/Mines | Entered Exiles 3555 | -9/Exiles | Met 8R-AWN 3579 | -9/Exiles | Met EX-HEX 3630 | -9/Exiles | Met EX-BIN 3660 | -9/Exiles | Aligned with FarCom system 3661 | -9/Exiles | Given EX-Vault access code 3706 | -9/Exiles | Opened EX-Vault 3719 | -9/Exiles | Found Field Lobotomy Kit 3752 | -9/Exiles | Warned to stay clear of 0b10 Research branches 3805 | -9/Exiles | Met EX-DEC 3897 | -9/Exiles | Discovered new exit (range 14) 3915 | -9/Exiles | Left Exiles lab with Field Lobotomy Kit 3915 | -9/Exiles | Entered Mines 3918 | -8/Mines | Core integrity fell below 50% 4178 | -8/Mines | Discovered new exit (range 12) 4198 | -8/Mines | Entered Materials 4198 | -8/Materials | Evolved 2 slots: Propulsion x1, Utility x1 5128 | -8/Materials | Garrison activated, responded to threat 5146 | -8/Materials | Assimilated G-47 Trooper with FLK Orb 5149 | -8/Materials | Assimilated H-55 Commando with FLK Orb 5186 | -8/Materials | Lost 7 parts (3n4w) 5240 | -8/Materials | Core integrity fell below 50% 5254 | -8/Materials | Core integrity fell below 20% 5284 | -8/Materials | Destroyed by G-47 Trooper with Particle Gun Last Messages --------------- 05265_ U-05 Engineer lays Concrete. 05267_ K-01 Serf collects debris. 05267_ U-05 Engineer lays Concrete. 05268_ K-01 Serf collects debris. 05268_ U-05 Engineer lays Concrete. 05269_ K-01 Serf collects debris. 05269_ ALERT: Hostiles spotted, dispatching reinforcements to Terminal M011. 05270_ U-05 Engineer lays Concrete. 05271_ K-01 Serf collects debris. 05272_ U-05 Engineer lays Concrete. 05274_ K-01 Serf collects debris. 05274_ U-05 Engineer lays Concrete. 05278_ Imp. Utility Shielding destroyed. 05279_ The unstable cave ceiling collapses. 05279_ U-05 Engineer lays Concrete. 05279_ K-01 Serf collects debris. 05280_ U-05 Engineer lays Concrete. 05281_ K-01 Serf collects debris. 05281_ U-05 Engineer lays Concrete. Map ----- +----------------------------------------------------+ | ??????????????????????????????????????????? | | ??????????????????????????????????????????? | | ???????????????? ##?????????????????????? | | ????????????????##+###????????????????????? | | ???????????????? ##????????????????????? | | ????????????????? ##????????????????????? | | ????????????????? ##????????????????????? | | ????????????????? ##????????????????????? | | ???????????????## ##????????????????????? | | ????????######### ##########????????????? | | ################# %##########????????????? | | ########## ????????????? | | # # ???????????? | | # " # T ????????????? | | # # #### ?????????????? | | # %!# = """# ??????????????? | | # # G" //????????????????? | | # = %+ """ / ????????????????? | | # " # g ###????????????????? | | #/ "" # gg k ##????????????????? | | # # #k#######???????????? | | ########## u #######???????????? | | ########## u k ]/##???????????? | | ?## # ^%" ] ##???????????? | | ?## """# " ##???????????? | | ?## """# @ ##???????????? | | ?## """#w # + ???????????? | | ### # """ # ##???????????? | | ### """# ! """ # ##???????????? | | # """# """ # ##???????????? | | # ! """# """ # ##???????????? | | # + """ ###+#######???????????? | | # ! # ???????????? | | # # ????????????????? | | =# # """ ????????????????? | | %######## """ ?????????????????? | | """ ?????????????????? | | """ w ??????????????????? | | """ !###"??????????????????? | | # !? ###"??????????????????? | | # ????????????????????????? | | # """ ????????????????????????? | | ###### """ ????????????????????????? | | ###### """ ????????????????????????? | | ????## ""??? ???????????????????????? | | ????## ""???????????????????????????? | | ????## ???????????????????????????? | | ???? # ????????????????????????????? | | ???? # ????????????????????????????? | | ???????? ?????????????????????????????? | +----------------------------------------------------+ Best States ------------- Heat Dissipation 38 Energy Generation 14 Energy Capacity 480 Matter Stores 300 Matter Capacity 300 Sight Range 16 Robot Scan Range 14 Terrain Scan Density 10 Armor Coverage 150 Utility Shielding 66 Evasion (%) 55 Recoil Reduction 4 Item Schematics ----------------- None Robot Schematics ------------------ None Fabricated ------------ Nothing Repaired ---------- Nothing Studied --------- None Alien Tech Used ----------------- None Achievements -------------- Factory Defaults Satisfying Challenges ------------ None Game ------ Seed PulsePlexusMiniperforator Manual? 0 Play Time 00:45:25 Cumulative 66.5 hours Start 2026.04.20 @ 11:41:26 End 2026.04.20 @ 12:29:23 Sessions 1 Manual Loads 0 Difficulty Rogue Special Mode None Game No. 130 Rogue 130 Adventurer 0 Explorer 0 Win Type - Total 0 Types 0/0/0/0/0/0/0/0/0/0 Lore% 15 Gallery% 33 Achievement% 22 Wizard Run 0 Options --------- Layout 0 ASCII 0 Keyboard 1 Movement Vi Keybinds 0 Fullscreen 2 Font 18/T_Terminus Map View 76x50 Zoom Use 0% Tactical HUD 1 Map Filters SHIFT_HUE(5) Filters LOW_CONTRAST(10,2,20)|SHIFT_HUE(5) Steam 1 RUN: 3f194606-e335-48c6-8d50-2d313c280d99